[Event "*** Titled Tuesday 3|2 Blitz (Early)"]
[Site "Chess.com"]
[Date "2016.12.06"]
[Round "6"]
[White "alturas_pacificas"]
[Black "Saitama_Hero"]
[Result "1-0"]
[WhiteElo "2175"]
[BlackElo "2139"]
[TimeControl "180+2"]
[EndTime "12:19:27 PST"]
[Termination "alturas_pacificas won on time"]

1. d4 {[%clk 0:03:01.9]} 1... f5 {[%clk 0:02:59.6]} 2. Qd3 {[%clk 0:02:59.7]}
2... e6 {[%clk 0:02:52.4]} 3. g4 {[%clk 0:03:00.3]} 3... fxg4 {[%clk 0:02:49.8]}
4. h3 {[%clk 0:03:01.5]} 4... gxh3 {[%clk 0:02:34.7]} 5. Nxh3 {[%clk 0:02:59.6]}
5... Be7 {[%clk 0:02:31]} 6. Nf4 {[%clk 0:02:55.4]} 6... Nf6 {[%clk 0:02:21.3]}
7. Ng6 {[%clk 0:02:50.9]} 7... Rg8 {[%clk 0:02:22.5]} 8. Nxe7 {[%clk 0:02:48.4]}
8... Qxe7 {[%clk 0:02:23.3]} 9. Bg5 {[%clk 0:02:49.9]} 9... h6 {[%clk
0:02:20.1]} 10. Bh4 {[%clk 0:02:28]} 10... Nc6 {[%clk 0:02:13.7]} 11. Nc3 {[%clk
0:02:18.6]} 11... d5 {[%clk 0:02:00.3]} 12. Bh3 {[%clk 0:02:13.2]} 12... Bd7
{[%clk 0:01:59.1]} 13. Qg6+ {[%clk 0:02:02]} 13... Qf7 {[%clk 0:01:58.4]} 14.
Qd3 {[%clk 0:01:50.3]} 14... O-O-O {[%clk 0:01:54]} 15. O-O-O {[%clk 0:01:50.7]}
15... e5 {[%clk 0:01:38.3]} 16. Bxf6 {[%clk 0:01:39.8]} 16... gxf6 {[%clk
0:01:35.4]} 17. dxe5 {[%clk 0:01:18.6]} 17... d4 {[%clk 0:01:35.8]} 18. e6
{[%clk 0:01:10.3]} 18... Bxe6 {[%clk 0:01:32.1]} 19. Qc4 {[%clk 0:01:11.5]}
19... Rde8 {[%clk 0:01:25.8]} 20. Nb5 {[%clk 0:01:05.4]} 20... Kb8 {[%clk
0:01:24.4]} 21. Bxe6 {[%clk 0:01:02.8]} 21... Qxe6 {[%clk 0:01:24.1]} 22. Qxe6
{[%clk 0:01:02.4]} 22... Rxe6 {[%clk 0:01:25]} 23. Nxd4 {[%clk 0:01:03.7]} 23...
Nxd4 {[%clk 0:01:26.2]} 24. Rxd4 {[%clk 0:01:04.6]} 24... Rxe2 {[%clk
0:01:26.7]} 25. Rxh6 {[%clk 0:01:02.5]} 25... Rxf2 {[%clk 0:01:21.6]} 26. Rg6
{[%clk 0:00:48.4]} 26... Re8 {[%clk 0:01:06.3]} 27. Re4 {[%clk 0:00:47.3]} 27...
Rd8 {[%clk 0:00:59.6]} 28. b3 {[%clk 0:00:33.5]} 28... b6 {[%clk 0:00:59.5]} 29.
Rg7 {[%clk 0:00:30.3]} 29... Rd6 {[%clk 0:00:48.9]} 30. Rc4 {[%clk 0:00:30]}
30... c5 {[%clk 0:00:21.9]} 31. Rh4 {[%clk 0:00:31.4]} 31... Rd8 {[%clk
0:00:20.3]} 32. Rhh7 {[%clk 0:00:30.7]} 32... f5 {[%clk 0:00:18.7]} 33. Rb7+
{[%clk 0:00:31.7]} 33... Ka8 {[%clk 0:00:15.7]} 34. Rxa7+ {[%clk 0:00:33]} 34...
Kb8 {[%clk 0:00:16.8]} 35. Rab7+ {[%clk 0:00:33.5]} 35... Ka8 {[%clk 0:00:16]}
36. Ra7+ {[%clk 0:00:17.7]} 36... Kb8 {[%clk 0:00:13.4]} 37. Rab7+ {[%clk
0:00:19.2]} 37... Ka8 {[%clk 0:00:13.8]} 38. Rxb6 {[%clk 0:00:20.7]} 38... f4
{[%clk 0:00:12.5]} 39. a4 {[%clk 0:00:17.1]} 39... f3 {[%clk 0:00:12.6]} 40. Rf7
{[%clk 0:00:10.9]} 40... Rf1+ {[%clk 0:00:10.6]} 41. Kb2 {[%clk 0:00:10.6]}
41... f2 {[%clk 0:00:10.4]} 42. Rbf6 {[%clk 0:00:10.8]} 42... Rd2 {[%clk
0:00:05.8]} 43. a5 {[%clk 0:00:11.8]} 1-0

[Event "*** Titled Tuesday 3|2 Blitz (Early)"]
[Site "Chess.com"]
[Date "2016.12.06"]
[Round "6"]
[White "SmoothAsAHedgehog"]
[Black "Pierrebl"]
[Result "0-1"]
[WhiteElo "2495"]
[BlackElo "2491"]
[TimeControl "180+2"]
[EndTime "12:19:28 PST"]
[Termination "Pierrebl won by resignation"]

1. Nf3 {[%clk 0:03:02]} 1... d5 {[%clk 0:03:00]} 2. c4 {[%clk 0:03:02.1]} 2...
c6 {[%clk 0:03:00.2]} 3. g3 {[%clk 0:03:03.2]} 3... Bg4 {[%clk 0:03:00]} 4. Ne5
{[%clk 0:03:03.9]} 4... Be6 {[%clk 0:03:00]} 5. cxd5 {[%clk 0:03:03.4]} 5...
Bxd5 {[%clk 0:03:00.1]} 6. Nf3 {[%clk 0:03:05]} 6... Bxf3 {[%clk 0:03:00.5]} 7.
exf3 {[%clk 0:03:06.9]} 7... g6 {[%clk 0:02:58.9]} 8. Nc3 {[%clk 0:03:06.7]}
8... Bg7 {[%clk 0:03:00.2]} 9. Bg2 {[%clk 0:03:08.4]} 9... e6 {[%clk 0:03:01.2]}
10. O-O {[%clk 0:03:09.6]} 10... Ne7 {[%clk 0:03:02.7]} 11. f4 {[%clk
0:03:11.2]} 11... O-O {[%clk 0:03:03.2]} 12. d3 {[%clk 0:03:11.7]} 12... Nd7
{[%clk 0:03:03.9]} 13. Qc2 {[%clk 0:03:13.4]} 13... Nf5 {[%clk 0:03:02.1]} 14.
Rd1 {[%clk 0:03:13.6]} 14... Nd4 {[%clk 0:02:58.4]} 15. Qd2 {[%clk 0:03:13.6]}
15... a5 {[%clk 0:02:52]} 16. Rb1 {[%clk 0:03:14.4]} 16... Nc5 {[%clk
0:02:51.9]} 17. Ne4 {[%clk 0:03:13.6]} 17... Qb6 {[%clk 0:02:48.2]} 18. Qe3
{[%clk 0:03:10.7]} 18... Rfd8 {[%clk 0:02:43.7]} 19. Bd2 {[%clk 0:03:10.2]}
19... Qb5 {[%clk 0:02:19.4]} 20. Bc3 {[%clk 0:03:05.2]} 20... Na4 {[%clk
0:02:02.1]} 21. Bf1 {[%clk 0:02:58.2]} 21... Rd7 {[%clk 0:02:00.3]} 22. h4
{[%clk 0:02:48.9]} 22... Rad8 {[%clk 0:02:00.8]} 23. Ng5 {[%clk 0:02:41.7]}
23... h6 {[%clk 0:01:46.3]} 24. Ne4 {[%clk 0:02:41.5]} 24... Qh5 {[%clk
0:01:39.7]} 25. Bxd4 {[%clk 0:02:09.5]} 25... Bxd4 {[%clk 0:01:36.3]} 26. Qxd4
{[%clk 0:01:56.4]} 26... Rxd4 {[%clk 0:01:36.1]} 27. Nf6+ {[%clk 0:01:57.1]}
27... Kg7 {[%clk 0:01:37.6]} 28. Nxh5+ {[%clk 0:01:59]} 28... gxh5 {[%clk
0:01:39.2]} 29. Rdc1 {[%clk 0:01:58.5]} 29... R8d5 {[%clk 0:01:28.4]} 30. b3
{[%clk 0:01:52.1]} 30... Nc5 {[%clk 0:01:23.6]} 31. Bg2 {[%clk 0:01:49.4]} 31...
Nxd3 {[%clk 0:01:24.7]} 32. Bxd5 {[%clk 0:01:27.2]} 32... Nxc1 {[%clk
0:01:25.6]} 33. Bf3 {[%clk 0:01:28.7]} 33... Nxa2 {[%clk 0:01:23.7]} 34. Ra1
{[%clk 0:01:25.6]} 34... Rd2 {[%clk 0:01:24.3]} 35. Bxh5 {[%clk 0:01:25.2]}
35... b6 {[%clk 0:01:14.3]} 36. Bf3 {[%clk 0:01:24.9]} 36... Nb4 {[%clk
0:01:14.6]} 37. Be4 {[%clk 0:01:18.9]} 37... Rb2 {[%clk 0:01:09.4]} 38. Ra3
{[%clk 0:01:19]} 38... f5 {[%clk 0:01:05.9]} 39. Bf3 {[%clk 0:01:16.5]} 39...
Nc2 {[%clk 0:00:54.6]} 40. Ra4 {[%clk 0:01:17.3]} 40... Rxb3 {[%clk 0:00:52.4]}
41. Bxc6 {[%clk 0:01:18.3]} 41... Rb4 {[%clk 0:00:45.9]} 42. Ra2 {[%clk
0:01:15.8]} 42... Nd4 {[%clk 0:00:47.3]} 43. Bg2 {[%clk 0:01:15.9]} 43... a4
{[%clk 0:00:47.6]} 44. Bf1 {[%clk 0:01:12.4]} 44... b5 {[%clk 0:00:46.9]} 45.
Kg2 {[%clk 0:01:12.8]} 45... Rb3 {[%clk 0:00:45.7]} 46. Bxb5 {[%clk 0:01:11.4]}
46... Nxb5 {[%clk 0:00:43]} 47. Rxa4 {[%clk 0:01:12.9]} 47... Nd6 {[%clk
0:00:42.9]} 48. Ra2 {[%clk 0:01:07.5]} 48... Rd3 {[%clk 0:00:42.4]} 49. Re2
{[%clk 0:01:08.1]} 49... Kf6 {[%clk 0:00:42.6]} 50. h5 {[%clk 0:01:08.7]} 50...
Ne4 {[%clk 0:00:42.4]} 51. Kg1 {[%clk 0:01:04.2]} 51... Rd2 {[%clk 0:00:42.6]}
52. Rxd2 {[%clk 0:00:57.1]} 52... Nxd2 {[%clk 0:00:43.9]} 53. Kg2 {[%clk
0:00:59]} 53... Nc4 {[%clk 0:00:31.5]} 54. Kf3 {[%clk 0:00:59.5]} 54... Kf7
{[%clk 0:00:28.8]} 55. Ke2 {[%clk 0:00:58.8]} 55... Nd6 {[%clk 0:00:28.5]} 56.
Ke3 {[%clk 0:00:56.7]} 56... Ne8 {[%clk 0:00:29.5]} 57. f3 {[%clk 0:00:55.2]}
57... Nf6 {[%clk 0:00:30.4]} 58. g4 {[%clk 0:00:51.6]} 58... fxg4 {[%clk
0:00:30.8]} 59. fxg4 {[%clk 0:00:53.5]} 59... Nxg4+ {[%clk 0:00:30.8]} 60. Ke2
{[%clk 0:00:54.8]} 60... Nf6 {[%clk 0:00:32]} 0-1

[Event "*** Titled Tuesday 3|2 Blitz (Early)"]
[Site "Chess.com"]
[Date "2016.12.06"]
[Round "6"]
[White "stefanodinn"]
[Black "FearlessKing64"]
[Result "1-0"]
[WhiteElo "2190"]
[BlackElo "1985"]
[TimeControl "180+2"]
[EndTime "12:19:33 PST"]
[Termination "stefanodinn won by resignation"]

1. e4 {[%clk 0:02:59.7]} 1... c5 {[%clk 0:03:00.4]} 2. Nf3 {[%clk 0:03:00.7]}
2... d6 {[%clk 0:03:00.9]} 3. d4 {[%clk 0:02:59.3]} 3... cxd4 {[%clk 0:02:55.8]}
4. Nxd4 {[%clk 0:02:59.7]} 4... Nf6 {[%clk 0:02:57]} 5. f3 {[%clk 0:02:57.3]}
5... e5 {[%clk 0:02:57.1]} 6. Nb3 {[%clk 0:02:57.9]} 6... a5 {[%clk 0:02:57.6]}
7. c4 {[%clk 0:02:49.5]} 7... Nxe4 {[%clk 0:02:58.1]} 8. fxe4 {[%clk 0:02:48.7]}
8... Qh4+ {[%clk 0:02:56.6]} 9. Kd2 {[%clk 0:02:49.5]} 9... a4 {[%clk
0:02:41.6]} 10. Nc3 {[%clk 0:02:38.1]} 10... g6 {[%clk 0:02:22.5]} 11. g3 {[%clk
0:02:28.2]} 11... Qd8 {[%clk 0:02:10]} 12. Bd3 {[%clk 0:02:06.1]} 12... axb3
{[%clk 0:02:04.9]} 13. Qxb3 {[%clk 0:02:06]} 13... Nc6 {[%clk 0:02:03.9]} 14.
Nb5 {[%clk 0:01:56.8]} 14... Be7 {[%clk 0:01:33.1]} 15. Kc2 {[%clk 0:01:45.5]}
15... O-O {[%clk 0:01:22.6]} 16. Bh6 {[%clk 0:01:41.7]} 16... Re8 {[%clk
0:01:15.8]} 17. Rad1 {[%clk 0:01:15.6]} 17... Ra5 {[%clk 0:01:15.5]} 18. Kb1
{[%clk 0:01:14.7]} 18... Be6 {[%clk 0:01:14]} 19. Be3 {[%clk 0:01:00.4]} 19...
Bg5 {[%clk 0:00:43.6]} 20. Bf2 {[%clk 0:00:40.6]} 20... Qf6 {[%clk 0:00:35.2]}
21. Be1 {[%clk 0:00:29.1]} 21... Rxb5 {[%clk 0:00:28.1]} 22. Qxb5 {[%clk
0:00:28.9]} 22... Rb8 {[%clk 0:00:23.1]} 23. Rf1 {[%clk 0:00:24.3]} 23... Qe7
{[%clk 0:00:21.7]} 24. Bf2 {[%clk 0:00:22.5]} 24... Bd7 {[%clk 0:00:17.7]} 25.
Qb6 {[%clk 0:00:17.5]} 25... Qf8 {[%clk 0:00:17.8]} 26. h4 {[%clk 0:00:17.2]}
26... Bd8 {[%clk 0:00:18.4]} 27. Qb3 {[%clk 0:00:17]} 27... Na5 {[%clk
0:00:19.1]} 28. Qc3 {[%clk 0:00:17.5]} 28... b6 {[%clk 0:00:20.5]} 29. b3 {[%clk
0:00:17.6]} 29... Be6 {[%clk 0:00:19.4]} 30. Be3 {[%clk 0:00:17.5]} 30... Rc8
{[%clk 0:00:19.5]} 31. Qd2 {[%clk 0:00:16.4]} 31... Rb8 {[%clk 0:00:15.3]} 32.
Bh6 {[%clk 0:00:16.1]} 32... Qe8 {[%clk 0:00:15]} 33. Bg5 {[%clk 0:00:16.8]}
33... Bc7 {[%clk 0:00:15.1]} 34. Bf6 {[%clk 0:00:17.2]} 34... Bd8 {[%clk
0:00:14.9]} 35. Qf2 {[%clk 0:00:15.4]} 35... Bxf6 {[%clk 0:00:14.3]} 36. Qxf6
{[%clk 0:00:16.3]} 36... Nc6 {[%clk 0:00:16.1]} 37. h5 {[%clk 0:00:15.7]} 37...
Qe7 {[%clk 0:00:16]} 38. Qxe7 {[%clk 0:00:15.8]} 38... Nxe7 {[%clk 0:00:16.4]}
39. hxg6 {[%clk 0:00:16.9]} 39... hxg6 {[%clk 0:00:17.9]} 40. Be2 {[%clk
0:00:17.9]} 40... Kg7 {[%clk 0:00:18.8]} 41. Rxd6 {[%clk 0:00:18]} 41... b5
{[%clk 0:00:17.1]} 42. cxb5 {[%clk 0:00:18.3]} 42... Nc8 {[%clk 0:00:17]} 43.
Rc6 {[%clk 0:00:16.5]} 43... Ne7 {[%clk 0:00:17.7]} 44. Rc5 {[%clk 0:00:17]}
44... f6 {[%clk 0:00:16.9]} 45. Kb2 {[%clk 0:00:15.4]} 45... Kf7 {[%clk
0:00:17.1]} 46. a4 {[%clk 0:00:13.7]} 46... Bd7 {[%clk 0:00:17.6]} 47. Rd1
{[%clk 0:00:13.2]} 47... Ke6 {[%clk 0:00:18.2]} 48. Bc4+ {[%clk 0:00:13.7]} 1-0

[Event "*** Titled Tuesday 3|2 Blitz (Early)"]
[Site "Chess.com"]
[Date "2016.12.06"]
[Round "6"]
[White "RamonManon0g"]
[Black "calemcc"]
[Result "1-0"]
[WhiteElo "2285"]
[BlackElo "2108"]
[TimeControl "180+2"]
[EndTime "12:19:40 PST"]
[Termination "RamonManon0g won by checkmate"]

1. d4 {[%clk 0:03:02]} 1... d5 {[%clk 0:03:01.4]} 2. Bg5 {[%clk 0:03:03.5]} 2...
Nd7 {[%clk 0:02:58.4]} 3. e3 {[%clk 0:03:04.4]} 3... Ngf6 {[%clk 0:02:59.2]} 4.
c4 {[%clk 0:03:05.7]} 4... e6 {[%clk 0:02:59.8]} 5. Nc3 {[%clk 0:03:07.1]} 5...
c6 {[%clk 0:03:01.1]} 6. cxd5 {[%clk 0:03:07.5]} 6... exd5 {[%clk 0:03:02]} 7.
Qc2 {[%clk 0:03:08.9]} 7... Be7 {[%clk 0:03:02.4]} 8. Bd3 {[%clk 0:03:10.5]}
8... O-O {[%clk 0:03:02.8]} 9. Nf3 {[%clk 0:03:11.9]} 9... Re8 {[%clk
0:03:02.8]} 10. O-O {[%clk 0:03:13]} 10... Nf8 {[%clk 0:03:04.3]} 11. Rab1
{[%clk 0:03:14.2]} 11... Bg4 {[%clk 0:02:59.5]} 12. Ne5 {[%clk 0:03:14.8]} 12...
Bh5 {[%clk 0:02:59.8]} 13. b4 {[%clk 0:03:14.6]} 13... a6 {[%clk 0:03:00.3]} 14.
a4 {[%clk 0:03:15.6]} 14... Bd6 {[%clk 0:02:59.3]} 15. f4 {[%clk 0:03:15.8]}
15... Rc8 {[%clk 0:02:46.6]} 16. b5 {[%clk 0:03:16.3]} 16... c5 {[%clk
0:02:47.4]} 17. bxa6 {[%clk 0:03:13.6]} 17... cxd4 {[%clk 0:02:48.3]} 18. exd4
{[%clk 0:03:12.9]} 18... bxa6 {[%clk 0:02:48.5]} 19. Bxa6 {[%clk 0:03:12.5]}
19... Rc7 {[%clk 0:02:48.9]} 20. Qd3 {[%clk 0:02:59.8]} 20... h6 {[%clk
0:02:44.8]} 21. Bh4 {[%clk 0:02:50.6]} 21... Ng6 {[%clk 0:02:17.8]} 22. Bg3
{[%clk 0:02:20.7]} 22... Ne7 {[%clk 0:01:43.1]} 23. Nb5 {[%clk 0:02:10.8]} 23...
Bxe5 {[%clk 0:01:24.6]} 24. dxe5 {[%clk 0:02:05]} 24... Ne4 {[%clk 0:01:23.5]}
25. Nxc7 {[%clk 0:02:00.6]} 25... Qxc7 {[%clk 0:01:25.4]} 26. Rfc1 {[%clk
0:01:15.8]} 26... Qa7+ {[%clk 0:01:17.4]} 27. Kh1 {[%clk 0:01:15.8]} 27... Bg6
{[%clk 0:00:57.1]} 28. Qb5 {[%clk 0:01:16.4]} 28... Rf8 {[%clk 0:00:33.6]} 29.
Qb6 {[%clk 0:01:15.1]} 29... Qd7 {[%clk 0:00:26.7]} 30. Bb5 {[%clk 0:00:46.9]}
30... Qg4 {[%clk 0:00:22.3]} 31. Rb3 {[%clk 0:00:48]} 31... Nf5 {[%clk
0:00:20.5]} 32. Kg1 {[%clk 0:00:19.8]} 32... Nfxg3 {[%clk 0:00:19.8]} 33. hxg3
{[%clk 0:00:21.7]} 33... Nxg3 {[%clk 0:00:21]} 34. Qf2 {[%clk 0:00:22.1]} 34...
Ne4 {[%clk 0:00:21.3]} 35. Qf3 {[%clk 0:00:23.4]} 35... Qe6 {[%clk 0:00:22.1]}
36. Rc6 {[%clk 0:00:23.2]} 36... Qe7 {[%clk 0:00:21.3]} 37. f5 {[%clk
0:00:24.5]} 37... Nd2 {[%clk 0:00:20.9]} 38. Qxd5 {[%clk 0:00:23.2]} 38... Nxb3
{[%clk 0:00:21.3]} 39. fxg6 {[%clk 0:00:24.6]} 39... Na5 {[%clk 0:00:19.3]} 40.
gxf7+ {[%clk 0:00:25.3]} 40... Kh8 {[%clk 0:00:20.2]} 41. Ra6 {[%clk 0:00:25.1]}
41... Nb7 {[%clk 0:00:19.9]} 42. Ra7 {[%clk 0:00:26.4]} 42... Qc5+ {[%clk
0:00:20.6]} 43. Qxc5 {[%clk 0:00:27.6]} 43... Nxc5 {[%clk 0:00:22.5]} 44. Re7
{[%clk 0:00:27.9]} 44... g5 {[%clk 0:00:21.3]} 45. e6 {[%clk 0:00:26.1]} 45...
Kg7 {[%clk 0:00:22.5]} 46. Bd7 {[%clk 0:00:25.7]} 46... Kf6 {[%clk 0:00:23.4]}
47. Re8 {[%clk 0:00:26.8]} 47... Kg7 {[%clk 0:00:21.3]} 48. Rxf8 {[%clk
0:00:28.3]} 48... Kxf8 {[%clk 0:00:23.2]} 49. Kh2 {[%clk 0:00:29.3]} 49... Ke7
{[%clk 0:00:23.3]} 50. Kg3 {[%clk 0:00:29]} 50... h5 {[%clk 0:00:24.8]} 51. Kf3
{[%clk 0:00:30.2]} 51... g4+ {[%clk 0:00:26.1]} 52. Kf4 {[%clk 0:00:31.4]} 52...
Nd3+ {[%clk 0:00:25.8]} 53. Kg5 {[%clk 0:00:32.4]} 53... g3 {[%clk 0:00:26.1]}
54. Kxh5 {[%clk 0:00:33.5]} 54... Ne1 {[%clk 0:00:27]} 55. Kg4 {[%clk
0:00:34.6]} 55... Nxg2 {[%clk 0:00:28.6]} 56. Kxg3 {[%clk 0:00:36.5]} 56... Ne3
{[%clk 0:00:30.2]} 57. a5 {[%clk 0:00:37.8]} 57... Nd5 {[%clk 0:00:31.4]} 58.
Kf3 {[%clk 0:00:38.7]} 58... Nc7 {[%clk 0:00:32.9]} 59. Ke4 {[%clk 0:00:39.7]}
59... Na6 {[%clk 0:00:33.8]} 60. Ke5 {[%clk 0:00:40.9]} 60... Nc5 {[%clk
0:00:35.2]} 61. Kd5 {[%clk 0:00:42.3]} 61... Na6 {[%clk 0:00:36.4]} 62. Kc6
{[%clk 0:00:43.7]} 62... Nb4+ {[%clk 0:00:37.6]} 63. Kb7 {[%clk 0:00:45.2]}
63... Nd5 {[%clk 0:00:38]} 64. a6 {[%clk 0:00:47.1]} 64... Nf6 {[%clk
0:00:38.1]} 65. a7 {[%clk 0:00:48.3]} 65... Nxd7 {[%clk 0:00:39.3]} 66. exd7
{[%clk 0:00:49.4]} 66... Kxd7 {[%clk 0:00:40.3]} 67. f8=Q {[%clk 0:00:50.9]}
67... Ke6 {[%clk 0:00:41.5]} 68. a8=Q {[%clk 0:00:52.5]} 68... Kd7 {[%clk
0:00:43.4]} 69. Qac8# {[%clk 0:00:53.4]} 1-0

[Event "*** Titled Tuesday 3|2 Blitz (Early)"]
[Site "Chess.com"]
[Date "2016.12.06"]
[Round "6"]
[White "Firebullet"]
[Black "GMKrikor"]
[Result "0-1"]
[WhiteElo "2324"]
[BlackElo "2520"]
[TimeControl "180+2"]
[EndTime "12:19:48 PST"]
[Termination "GMKrikor won by resignation"]

1. d4 {[%clk 0:03:02]} 1... Nf6 {[%clk 0:02:58.5]} 2. c4 {[%clk 0:03:01.4]} 2...
g6 {[%clk 0:03:00]} 3. f3 {[%clk 0:03:02.2]} 3... d5 {[%clk 0:03:00.7]} 4. cxd5
{[%clk 0:03:03.1]} 4... Nxd5 {[%clk 0:03:02.6]} 5. e4 {[%clk 0:03:04.6]} 5...
Nb6 {[%clk 0:03:04]} 6. Nc3 {[%clk 0:03:06]} 6... Bg7 {[%clk 0:03:05.4]} 7. Be3
{[%clk 0:03:07.4]} 7... O-O {[%clk 0:03:05.2]} 8. Qd2 {[%clk 0:03:08.7]} 8...
Nc6 {[%clk 0:02:47.5]} 9. O-O-O {[%clk 0:03:08.8]} 9... Qd6 {[%clk 0:02:43.5]}
10. h4 {[%clk 0:03:07.3]} 10... Rd8 {[%clk 0:02:40.6]} 11. Nb5 {[%clk
0:03:07.2]} 11... Qd7 {[%clk 0:02:39.8]} 12. h5 {[%clk 0:03:08.1]} 12... a6
{[%clk 0:02:12]} 13. Nc3 {[%clk 0:03:08.6]} 13... Bxd4 {[%clk 0:02:04.3]} 14.
hxg6 {[%clk 0:03:07.7]} 14... fxg6 {[%clk 0:02:01.1]} 15. Bxd4 {[%clk
0:02:23.1]} 15... Qxd4 {[%clk 0:01:55.1]} 16. Qf4 {[%clk 0:02:18.9]} 16... Qf6
{[%clk 0:01:25.7]} 17. Rxd8+ {[%clk 0:02:10.3]} 17... Nxd8 {[%clk 0:01:26.9]}
18. Qxc7 {[%clk 0:02:11.1]} 18... Bd7 {[%clk 0:01:28.2]} 19. Bc4+ {[%clk
0:01:50]} 19... Kg7 {[%clk 0:00:49.9]} 20. Bb3 {[%clk 0:01:24.2]} 20... Rc8
{[%clk 0:00:49.5]} 21. Qh2 {[%clk 0:01:22.5]} 21... h5 {[%clk 0:00:42.9]} 22.
Ne2 {[%clk 0:01:22.7]} 22... Bb5 {[%clk 0:00:32]} 23. Nf4 {[%clk 0:01:13.8]}
23... Rxc3+ {[%clk 0:00:20.3]} 24. bxc3 {[%clk 0:01:14.5]} 24... Qxc3+ {[%clk
0:00:22.2]} 25. Kb1 {[%clk 0:01:16]} 25... Nc4 {[%clk 0:00:09.3]} 26. Bxc4
{[%clk 0:01:06.7]} 26... Bxc4 {[%clk 0:00:10.7]} 27. g4 {[%clk 0:00:57.9]} 27...
Qxf3 {[%clk 0:00:05.2]} 28. gxh5 {[%clk 0:00:30.8]} 28... Qxe4+ {[%clk 0:00:06]}
29. Kc1 {[%clk 0:00:30.6]} 29... g5 {[%clk 0:00:03.3]} 30. Rg1 {[%clk
0:00:26.2]} 30... Qe3+ {[%clk 0:00:03]} 31. Kb2 {[%clk 0:00:26.7]} 31... Qd4+
{[%clk 0:00:03.6]} 32. Kc1 {[%clk 0:00:26.7]} 32... Qe3+ {[%clk 0:00:04.8]} 33.
Kb1 {[%clk 0:00:25.6]} 33... Kh6 {[%clk 0:00:04.7]} 34. Nh3 {[%clk 0:00:08.3]}
34... Bd3+ {[%clk 0:00:04.2]} 35. Kb2 {[%clk 0:00:09.5]} 35... Ne6 {[%clk
0:00:04.4]} 36. Rc1 {[%clk 0:00:09.8]} 36... Qb6+ {[%clk 0:00:05.2]} 37. Ka1
{[%clk 0:00:10.1]} 37... Qe3 {[%clk 0:00:06.1]} 38. Qb2 {[%clk 0:00:11.2]} 38...
Qxh3 {[%clk 0:00:05.8]} 39. Qh8+ {[%clk 0:00:12.5]} 39... Bh7 {[%clk 0:00:07.2]}
40. Rf1 {[%clk 0:00:10.9]} 40... Qd3 {[%clk 0:00:06]} 41. Rf7 {[%clk 0:00:09.1]}
41... Qd4+ {[%clk 0:00:06.5]} 42. Qxd4 {[%clk 0:00:09.2]} 42... Nxd4 {[%clk
0:00:08.4]} 43. Rxe7 {[%clk 0:00:11.1]} 43... g4 {[%clk 0:00:06.8]} 44. Rxb7
{[%clk 0:00:11.5]} 44... g3 {[%clk 0:00:08.4]} 45. Rb4 {[%clk 0:00:11.7]} 45...
g2 {[%clk 0:00:08.6]} 46. Rxd4 {[%clk 0:00:12.9]} 46... g1=Q+ {[%clk 0:00:09.8]}
47. Kb2 {[%clk 0:00:14.8]} 47... Qxd4+ {[%clk 0:00:10.9]} 0-1

[Event "*** Titled Tuesday 3|2 Blitz (Early)"]
[Site "Chess.com"]
[Date "2016.12.06"]
[Round "6"]
[White "bugsbunny444"]
[Black "viktorskliarov"]
[Result "0-1"]
[WhiteElo "2392"]
[BlackElo "2443"]
[TimeControl "180+2"]
[EndTime "12:19:50 PST"]
[Termination "viktorskliarov won by resignation"]

1. Nf3 {[%clk 0:03:02]} 1... g6 {[%clk 0:02:56.2]} 2. e4 {[%clk 0:03:02.1]} 2...
c5 {[%clk 0:02:54.8]} 3. c4 {[%clk 0:03:02.5]} 3... Bg7 {[%clk 0:02:55.3]} 4. d4
{[%clk 0:03:04.1]} 4... cxd4 {[%clk 0:02:56.3]} 5. Nxd4 {[%clk 0:03:05.7]} 5...
Nc6 {[%clk 0:02:57.9]} 6. Be3 {[%clk 0:03:06.7]} 6... Nf6 {[%clk 0:02:58.9]} 7.
Nc3 {[%clk 0:03:07.8]} 7... Ng4 {[%clk 0:02:59.9]} 8. Qxg4 {[%clk 0:03:07.9]}
8... Bxd4 {[%clk 0:03:00.7]} 9. Bxd4 {[%clk 0:03:06.2]} 9... Nxd4 {[%clk
0:03:01.8]} 10. O-O-O {[%clk 0:03:07.3]} 10... d6 {[%clk 0:02:48.1]} 11. Qg3
{[%clk 0:03:06]} 11... e5 {[%clk 0:02:48.1]} 12. f4 {[%clk 0:03:03.1]} 12... O-O
{[%clk 0:02:37.3]} 13. fxe5 {[%clk 0:02:56.4]} 13... dxe5 {[%clk 0:02:31.7]} 14.
Qxe5 {[%clk 0:02:48.3]} 14... Nc6 {[%clk 0:02:32.2]} 15. Rxd8 {[%clk 0:02:13.9]}
15... Nxe5 {[%clk 0:02:31.1]} 16. Rxf8+ {[%clk 0:02:07.3]} 16... Kxf8 {[%clk
0:02:31.7]} 17. Be2 {[%clk 0:02:08]} 17... Be6 {[%clk 0:02:32.3]} 18. b3 {[%clk
0:02:06]} 18... Ke7 {[%clk 0:02:27.2]} 19. Rd1 {[%clk 0:02:04.1]} 19... a6
{[%clk 0:02:28.2]} 20. Kd2 {[%clk 0:01:46.6]} 20... Rc8 {[%clk 0:02:24.2]} 21.
Nd5+ {[%clk 0:01:14.4]} 21... Bxd5 {[%clk 0:02:05.4]} 22. exd5 {[%clk
0:01:16.3]} 22... Kd6 {[%clk 0:02:06.4]} 23. Ke3 {[%clk 0:01:04.5]} 23... a5
{[%clk 0:02:00.3]} 24. Kd4 {[%clk 0:01:00.4]} 24... b6 {[%clk 0:01:55.9]} 25.
Rc1 {[%clk 0:00:56.6]} 25... Re8 {[%clk 0:01:51.7]} 26. c5+ {[%clk 0:00:39.6]}
26... bxc5+ {[%clk 0:01:51.7]} 27. Rxc5 {[%clk 0:00:41.5]} 27... Ra8 {[%clk
0:01:40.1]} 28. Bb5 {[%clk 0:00:28.7]} 28... f5 {[%clk 0:01:35.2]} 29. Be2
{[%clk 0:00:11.4]} 29... g5 {[%clk 0:01:33.9]} 30. Rb5 {[%clk 0:00:12.8]} 30...
Nd7 {[%clk 0:01:31.6]} 31. Bd3 {[%clk 0:00:13.8]} 31... f4 {[%clk 0:01:23]} 32.
Bxh7 {[%clk 0:00:14.7]} 32... Rh8 {[%clk 0:01:23]} 33. Bf5 {[%clk 0:00:10.5]}
33... Rxh2 {[%clk 0:01:23.2]} 34. Rxa5 {[%clk 0:00:12]} 34... Nf8 {[%clk
0:00:40.4]} 35. Ra6+ {[%clk 0:00:11.7]} 35... Ke7 {[%clk 0:00:41.5]} 36. d6+
{[%clk 0:00:08.6]} 36... Kf6 {[%clk 0:00:42.5]} 37. Be4 {[%clk 0:00:03.8]} 37...
g4 {[%clk 0:00:41.5]} 38. Ra8 {[%clk 0:00:03.2]} 38... Nd7 {[%clk 0:00:41.4]}
39. Rd8 {[%clk 0:00:03.5]} 39... Ke6 {[%clk 0:00:41.3]} 40. Bf5+ {[%clk
0:00:03.6]} 40... Kxf5 {[%clk 0:00:40.7]} 41. Rxd7 {[%clk 0:00:05.3]} 41... Rxg2
{[%clk 0:00:42.1]} 42. Rd8 {[%clk 0:00:03.6]} 42... Rd2+ {[%clk 0:00:41]} 43.
Kc3 {[%clk 0:00:04.4]} 43... Rd1 {[%clk 0:00:38.4]} 44. Kc2 {[%clk 0:00:03.3]}
44... Rd5 {[%clk 0:00:38.3]} 45. b4 {[%clk 0:00:03.5]} 45... g3 {[%clk 0:00:39]}
46. Rf8+ {[%clk 0:00:04.3]} 46... Ke4 {[%clk 0:00:39.2]} 47. Re8+ {[%clk
0:00:05.1]} 47... Kf3 {[%clk 0:00:39.8]} 48. b5 {[%clk 0:00:02.3]} 48... g2
{[%clk 0:00:37.2]} 49. Rg8 {[%clk 0:00:02.9]} 49... Rxb5 {[%clk 0:00:37.5]} 50.
d7 {[%clk 0:00:03.9]} 50... Rd5 {[%clk 0:00:38.6]} 0-1